lending/lending_fUSD_20250121
["ID","MTS","AMOUNT","RATE_DAILY","PERIOD"]
[349884763,1737477057663,-500.0,0.00020547,2]
[349884764,1737477057672,-500.0,0.00020547,2]
[349884765,1737477057682,-500.0,0.00020547,2]
[349884766,1737477057692,-500.0,0.00020547,2]
[349884767,1737477057702,-500.0,0.00020547,2]
[349884768,1737477057714,-538.18,0.00020547,2]
[349884769,1737477057724,-500.0,0.00020547,2]
[349884770,1737477057734,-402.19269774,0.00020547,2]
[349884771,1737477057744,-500.0,0.00020547,2]
[349884772,1737477057754,-500.0,0.00020547,2]
[349884773,1737477057764,-500.0,0.00020547,2]
[349884774,1737477057774,-554.59,0.00020547,2]
[349884775,1737477057784,-500.0,0.00020547,2]
[349884776,1737477057794,-500.0,0.00020547,2]
[349884777,1737477057803,-768.57,0.00020547,2]
[349884778,1737477057813,-513.08,0.00020547,2]
[349884779,1737477057822,-1117.69,0.00020547,2]
[349884780,1737477057832,-1145.36,0.00020547,2]
[349884781,1737477057842,-1478.46,0.00020547,2]
[349884782,1737477057851,-793.46,0.00020547,2]
[349884783,1737477057861,-2567.88,0.00020547,2]
[349884784,1737477057871,-500.0,0.00020547,2]
[349884785,1737477057880,-2268.25,0.00020547,2]
[349884786,1737477057890,-738.72,0.00020547,2]
[349884787,1737477057900,-668.49,0.00020547,2]
[349884788,1737477057909,-1239.98,0.00020547,2]
[349884789,1737477057919,-151.398647,0.00020547,2]
[349884790,1737477057929,-584.26,0.00020547,2]
[349884791,1737477057939,-1199.74,0.00020547,2]
[349884792,1737477057949,-814.42,0.00020547,2]
[349884793,1737477057960,-500.0,0.00020547,2]
[349884794,1737477057970,-500.0,0.00020547,2]
[349884795,1737477057979,-1180.79,0.00020547,2]
[349884796,1737477057989,-738.29,0.00020547,2]
[349884797,1737477057998,-1021.82,0.00020547,2]
[349884798,1737477058007,-2071.37,0.00020547,2]
[349884799,1737477058017,-745.65,0.00020547,2]
[349884800,1737477058026,-831.15,0.00020547,2]
[349884801,1737477058035,-671.62,0.00020547,2]
[349884802,1737477058045,-3229.15,0.00020547,2]
[349884803,1737477058054,-762.03,0.00020547,2]
[349884804,1737477058064,-500.0,0.00020547,2]
[349884805,1737477058073,-1135.16,0.00020547,2]
[349884806,1737477058082,-919.59,0.00020547,2]
[349884807,1737477058091,-1499.17,0.00020547,2]
[349884808,1737477058100,-783.66,0.00020547,2]
[349884809,1737477058110,-500.0,0.00020547,2]
[349884810,1737477058119,-1128.29,0.00020547,2]
[349884811,1737477058131,-3766.79,0.00020547,2]
[349884812,1737477058140,-173.68,0.00020547,2]
[349884813,1737477058150,-500.0,0.00020547,2]
[349884814,1737477058160,-1006.04,0.00020547,2]
[349884815,1737477058170,-2620.51,0.00020547,2]
[349884816,1737477058179,-500.0,0.00020547,2]
[349884817,1737477058188,-349.96070651,0.00020547,2]
[349884818,1737477058197,-1151.57,0.00020547,2]
[349884819,1737477058211,-881.18,0.00020547,2]
[349884820,1737477058221,-500.0,0.00020547,2]
[349884821,1737477058231,-1114.11,0.00020547,2]
[349884822,1737477058240,-766.29,0.00020547,2]
[349884823,1737477058250,-1441.88,0.00020547,2]
[349884824,1737477058259,-748.12,0.00020547,2]
[349884825,1737477058268,-2257.9,0.00020547,2]
[349884826,1737477058277,-500.0,0.00020547,2]
[349884827,1737477058287,-633.02,0.00020547,2]
[349884828,1737477058297,-500.0,0.00020547,2]
[349884829,1737477058307,-2032.02,0.00020547,2]
[349884830,1737477058316,-2364.46,0.00020547,2]
[349884831,1737477058325,-876.37,0.00020547,2]
[349884832,1737477058335,-1545.37,0.00020547,2]
[349884833,1737477058344,-500.0,0.00020547,2]
[349884834,1737477058354,-3191.77,0.00020547,2]
[349884835,1737477058363,-605.27,0.00020547,2]
[349884836,1737477058372,-1179.69,0.00020547,2]
[349884837,1737477058382,-638.22,0.00020547,2]
[349884838,1737477058392,-500.0,0.00020547,2]
[349884839,1737477058401,-752.63,0.00020547,2]
[349884840,1737477058411,-1483.27,0.00020547,2]
[349884841,1737477058420,-1265.35,0.00020547,2]
[349884842,1737477058429,-3137.3,0.00020547,2]
[349884843,1737477058439,-747.65,0.00020547,2]
[349884844,1737477058448,-1937.57,0.00020547,2]
[349884845,1737477058459,-1040.18,0.00020547,2]
[349884846,1737477058468,-1723.07,0.00020547,2]
[349884847,1737477058477,-649.71,0.00020547,2]
[349884848,1737477058487,-1180.36,0.00020547,2]
[349884849,1737477058496,-500.0,0.00020547,2]
[349884850,1737477058506,-603.6,0.00020547,2]
[349884851,1737477058516,-1029.27,0.00020547,2]
[349884852,1737477058526,-500.0,0.00020547,2]
[349884853,1737477058536,-1082.54,0.00020547,2]
[349884854,1737477058545,-5615.7,0.00020547,2]
[349884855,1737477058555,-4584.63,0.00020547,2]
[349884856,1737477058564,-1492.74,0.00020547,2]
[349884857,1737477058574,-500.0,0.00020547,2]
[349884858,1737477058584,-1203.88,0.00020547,2]
[349884859,1737477058594,-1420.19,0.00020547,2]
[349884860,1737477058603,-1366.47,0.00020547,2]
[349884861,1737477058612,-1049.81,0.00020547,2]
[349884862,1737477058621,-2134.74,0.00020547,2]
[349884863,1737477058631,-1655.17,0.00020547,2]
[349884864,1737477058641,-500.0,0.00020547,2]
[349884865,1737477058650,-755.87,0.00020547,2]
[349884866,1737477058660,-1263.01,0.00020547,2]
[349884867,1737477058669,-500.0,0.00020547,2]
[349884868,1737477058678,-1043.95,0.00020547,2]
[349884869,1737477058687,-500.0,0.00020547,2]
[349884870,1737477058697,-2455.69,0.00020547,2]
[349884871,1737477058706,-610.51996477,0.00020547,2]
[349884872,1737477058719,-512.55,0.00020547,2]
[349884873,1737477058729,-792.37,0.00020547,2]
[349884874,1737477058739,-1668.11,0.00020547,2]
[349884875,1737477058748,-500.0,0.00020547,2]
[349884876,1737477058757,-500.0,0.00020547,2]
[349884877,1737477058767,-850.0,0.00020547,2]
[349884878,1737477058778,-500.0,0.00020547,2]
[349884879,1737477058789,-848.82,0.00020547,2]
[349884880,1737477058799,-1140.79,0.00020547,2]
[349884881,1737477058808,-2272.73,0.00020547,2]
[349884882,1737477058818,-384.64,0.00020547,2]
[349884883,1737477058827,-5135.31,0.00020547,2]
[349884884,1737477058837,-2017.12,0.00020547,2]
[349884885,1737477058847,-174.313819,0.00020547,2]
[349884886,1737477058857,-500.0,0.00020547,2]
[349884887,1737477058867,-500.0,0.00020547,2]
[349884888,1737477058877,-500.0,0.00020547,2]
[349884889,1737477058886,-500.0,0.00020547,2]
[349884890,1737477058897,-612.05,0.00020547,2]
[349884891,1737477058906,-1227.83,0.00020547,2]
[349884892,1737477058917,-1668.51,0.00020547,2]
[349884893,1737477058928,-500.0,0.00020547,2]
[349884894,1737477058938,-584.62,0.00020547,2]
[349884895,1737477058948,-290.31432447,0.00020547,2]
[349884896,1737477058962,-1728.52,0.00020547,2]
[349884897,1737477058974,-500.0,0.00020547,2]
[349884898,1737477058984,-1313.62,0.00020547,2]
[349884899,1737477058994,-1003.95,0.00020547,2]
[349884900,1737477059004,-170.927707,0.00020547,2]
[349884901,1737477059013,-500.0,0.00020547,2]
[349884902,1737477059024,-1322.78,0.00020547,2]
[349884903,1737477059034,-874.3,0.00020547,2]
[349884904,1737477059044,-671.72,0.00020547,2]
[349884905,1737477059055,-5811.8,0.00020547,2]
[349884906,1737477059064,-500.0,0.00020547,2]
[349884907,1737477059075,-500.0,0.00020547,2]
[349884908,1737477059084,-2583.31,0.00020547,2]
[349884909,1737477059095,-1676.01,0.00020547,2]
[349884910,1737477059105,-500.0,0.00020547,2]
[349884911,1737477059116,-668.64,0.00020547,2]
[349884912,1737477059127,-500.0,0.00020547,2]
[349884913,1737477059138,-500.0,0.00020547,2]
[349884914,1737477059149,-563.38,0.00020547,2]
[349884915,1737477059159,-2301.07,0.00020547,2]
[349884916,1737477059169,-500.0,0.00020547,2]
[349884917,1737477059179,-892.19,0.00020547,2]
[349884918,1737477059190,-894.49,0.00020547,2]
[349884919,1737477059206,-500.0,0.00020547,2]
[349884920,1737477059221,-338.11809925,0.00020547,2]
[349884921,1737477059231,-150.0,0.00020554,2]
[349884922,1737477059241,-165.86636039,0.00020562,2]
[349884923,1737477059252,-150.0,0.00020569,2]
[349884924,1737477059261,-150.0,0.00020595,2]
[349884925,1737477059271,-150.0,0.00020596,2]
[349884926,1737477059282,-2522.94,0.00020609,2]
[349884927,1737477059291,-394.01,0.00020613,2]
[349884928,1737477059301,-1051.05,0.00020615,7]
[349884929,1737477059311,-1051.05,0.00020615,7]
[349884930,1737477059320,-1272.58,0.0002062,2]
[349884931,1737477059331,-1272.58,0.0002062,2]
[349884932,1737477059340,-4345.76073164,0.0002063,2]
[349884933,1737477059350,-150.0,0.0002064,2]
[349884934,1737477059359,-3000.0,0.00020641,2]
[349884935,1737477059369,-3000.0,0.00020657,2]
[349884936,1737477059379,-150.0,0.00020658,2]
[349884937,1737477059388,-470.32340736,0.00020659,2]
[349884938,1737477059398,-1786.21,0.0002066,2]
[349884939,1737477059408,-462.35,0.00020672,2]
[349884940,1737477059418,-3000.0,0.00020674,2]
[349884941,1737477059427,-150.0,0.00020682,2]
[349884942,1737477059437,-2522.94,0.00020686,2]
[349884943,1737477059446,-3000.0,0.00020686,2]
[349884944,1737477059456,-150.0,0.00020687,2]
[349884945,1737477059467,-171.72442,0.00020688,2]
[349884946,1737477059477,-2520.56,0.0002069,2]
[349884947,1737477059486,-1344.51,0.00020694,2]
[349884948,1737477059496,-3000.0,0.00020701,2]
[349884949,1737477059506,-5000.0,0.00020704,2]
[349884950,1737477059515,-150.0,0.0002071,2]
[349884951,1737477059525,-150.0,0.00020713,2]
[349884952,1737477059535,-150.0,0.00020715,2]
[349884953,1737477059544,-300.0,0.00020728,2]
[349884954,1737477059554,-150.0,0.00020733,2]
[349884955,1737477059563,-5000.0,0.00020733,2]
[349884956,1737477059572,-1000.0,0.00020738,2]
[349884957,1737477059582,-1128.65,0.00020758,2]
[349884958,1737477059591,-150.0,0.00020766,2]
[349884959,1737477059601,-263.12097391,0.00020782,2]
[349884960,1737477059611,-297.62597625,0.00020788,2]
[349884961,1737477059620,-345.9399633,0.00020794,2]
[349884962,1737477059630,-16621.02188411,0.00020799,2]
[349884963,1737477059640,-200.0,0.000208,2]
[349884964,1737477059650,-1076.81159838,0.00020802,2]
[349884965,1737477059661,-2736.53590528,0.00020804,2]
[349884966,1737477059671,-2736.53590528,0.00020808,2]
[349884967,1737477059680,-719.72502081,0.00020811,2]
[349884968,1737477059690,-345.9399633,0.00020812,2]
[349884969,1737477059700,-200.0,0.00020813,2]
[349884970,1737477059715,-2110.78,0.00020813,2]
[349884971,1737477059725,-263.12097391,0.00020821,2]
[349884972,1737477059735,-297.62597625,0.00020821,2]
[349884973,1737477059745,-500.0,0.00020821,2]
[349884974,1737477059756,-500.0,0.00020821,2]
[349884975,1737477059767,-500.0,0.00020821,2]
[349884976,1737477059778,-500.0,0.00020821,2]
[349884977,1737477059789,-500.0,0.00020821,2]
[349884978,1737477059799,-500.0,0.00020821,2]
[349884979,1737477059809,-500.0,0.00020821,2]
[349884980,1737477059819,-500.0,0.00020821,2]
[349884981,1737477059828,-500.0,0.00020821,2]
[349884982,1737477059838,-514.25,0.00020821,2]
[349884983,1737477059848,-500.0,0.00020821,2]
[349884984,1737477059859,-565.93465827,0.00020821,2]
[349884985,1737477059868,-500.0,0.00020821,2]
[349884986,1737477059878,-500.0,0.00020821,2]
[349884987,1737477059887,-500.0,0.00020821,2]
[349884988,1737477059897,-500.0,0.00020821,2]
[349884989,1737477059907,-500.0,0.00020821,2]
[349884990,1737477059917,-500.0,0.00020821,2]
[349884991,1737477059926,-500.0,0.00020821,2]
[349884992,1737477059936,-500.0,0.00020821,2]
[349884993,1737477059945,-500.0,0.00020821,2]
[349884994,1737477059955,-500.0,0.00020821,2]
[349884995,1737477059970,-510.78,0.00020821,2]
[349884996,1737477059980,-500.0,0.00020821,2]
[349884997,1737477059990,-500.0,0.00020821,2]
[349884998,1737477060000,-614.79,0.00020821,2]
[349884999,1737477060010,-500.0,0.00020821,2]
[349885000,1737477060020,-500.0,0.00020821,2]
[349885001,1737477060030,-500.0,0.00020821,2]
[349885002,1737477060040,-536.77,0.00020821,2]
[349885003,1737477060050,-418.6025601,0.00020821,2]
[349885004,1737477060059,-500.0,0.00020821,2]
[349885005,1737477060068,-500.0,0.00020821,2]
[349885006,1737477060078,-500.0,0.00020821,2]
[349885007,1737477060088,-500.0,0.00020821,2]
[349885008,1737477060097,-500.0,0.00020821,2]
[349885009,1737477060106,-572.3,0.00020821,2]
[349885010,1737477060118,-540.57,0.00020821,2]
[349885011,1737477060128,-500.0,0.00020821,2]
[349885012,1737477060137,-542.72,0.00020821,2]
[349885013,1737477060146,-500.0,0.00020821,2]
[349885014,1737477060155,-597.04,0.00020821,2]
[349885015,1737477060166,-500.0,0.00020821,2]
[349885016,1737477060176,-500.0,0.00020821,2]
[349885017,1737477060185,-500.0,0.00020821,2]
[349885018,1737477060197,-500.0,0.00020821,2]
[349885019,1737477060206,-500.0,0.00020821,2]
[349885020,1737477060218,-333.54015985,0.00020821,2]
[349885021,1737477060227,-500.0,0.00020821,2]
[349885022,1737477060236,-500.0,0.00020821,2]
[349885023,1737477060246,-500.0,0.00020821,2]
[349885024,1737477060255,-500.0,0.00020821,2]
[349885025,1737477060264,-535.31,0.00020821,2]
[349885026,1737477060274,-500.0,0.00020821,2]
[349885027,1737477060284,-657.081719,0.00020821,2]
[349885028,1737477060294,-500.0,0.00020821,2]
[349885029,1737477060303,-498.80358942,0.00020821,2]
[349885030,1737477060313,-500.0,0.00020821,2]
[349885031,1737477060322,-509.866666,0.00020821,2]
[349885032,1737477060331,-500.0,0.00020821,2]
[349885033,1737477060340,-500.0,0.00020821,2]
[349885034,1737477060349,-500.0,0.00020821,2]
[349885035,1737477060358,-500.0,0.00020821,2]
[349885036,1737477060367,-500.0,0.00020821,2]
[349885037,1737477060377,-500.0,0.00020821,2]
[349885038,1737477060387,-591.31395789,0.00020821,2]
[349885039,1737477060396,-500.0,0.00020821,2]
[349885040,1737477060405,-724.32,0.00020821,2]
[349885041,1737477060414,-500.0,0.00020821,2]
[349885042,1737477060424,-500.0,0.00020821,2]
[349885043,1737477060433,-500.0,0.00020821,2]
[349885044,1737477060442,-500.0,0.00020821,2]
[349885045,1737477060587,-500.0,0.00020821,2]
[349885046,1737477060613,-500.0,0.00020821,2]
[349885047,1737477060623,-500.0,0.00020821,2]
[349885048,1737477060633,-500.0,0.00020821,2]
[349885049,1737477060643,-500.0,0.00020821,2]
[349885050,1737477060653,-500.0,0.00020821,2]
[349885051,1737477060663,-500.0,0.00020821,2]
[349885052,1737477060672,-500.0,0.00020821,2]
[349885053,1737477060682,-500.0,0.00020821,2]
[349885054,1737477060691,-500.0,0.00020821,2]
[349885055,1737477060701,-500.0,0.00020821,2]
[349885056,1737477060715,-500.0,0.00020821,2]
[349885057,1737477060725,-538.18,0.00020821,2]
[349885058,1737477060734,-500.0,0.00020821,2]
[349885059,1737477060745,-184.294854,0.00020821,2]
[349885060,1737477060755,-500.0,0.00020821,2]
[349885061,1737477060765,-500.0,0.00020821,2]
[349885062,1737477060775,-500.0,0.00020821,2]
[349885063,1737477060785,-554.59,0.00020821,2]
[349885064,1737477060794,-500.0,0.00020821,2]
[349885065,1737477060804,-500.0,0.00020821,2]
[349885066,1737477060814,-768.57,0.00020821,2]
[349885067,1737477060823,-513.08,0.00020821,2]
[349885068,1737477060833,-1117.69,0.00020821,2]
[349885069,1737477060843,-1145.36,0.00020821,2]
[349885070,1737477060852,-1478.46,0.00020821,2]
[349885071,1737477060861,-793.46,0.00020821,2]
[349885072,1737477060871,-2567.88,0.00020821,2]
[349885073,1737477060880,-500.0,0.00020821,2]
[349885074,1737477060890,-2268.25,0.00020821,2]
[349885075,1737477060900,-738.72,0.00020821,2]
[349885076,1737477060910,-668.49,0.00020821,2]
[349885077,1737477060920,-1239.98,0.00020821,2]
[349885078,1737477060930,-584.26,0.00020821,2]
[349885079,1737477060940,-1199.74,0.00020821,2]
[349885080,1737477060950,-814.42,0.00020821,2]
[349885081,1737477060961,-500.0,0.00020821,2]
[349885082,1737477060971,-500.0,0.00020821,2]
[349885083,1737477060980,-1180.79,0.00020821,2]
[349885084,1737477060989,-738.29,0.00020821,2]
[349885085,1737477060999,-1021.82,0.00020821,2]
[349885086,1737477061008,-2071.37,0.00020821,2]
[349885087,1737477061018,-745.65,0.00020821,2]
[349885088,1737477061027,-831.15,0.00020821,2]
[349885089,1737477061037,-671.62,0.00020821,2]
[349885090,1737477061046,-3229.15,0.00020821,2]
[349885091,1737477061055,-762.03,0.00020821,2]
[349885092,1737477061064,-500.0,0.00020821,2]
[349885093,1737477061074,-1135.16,0.00020821,2]
[349885094,1737477061084,-919.59,0.00020821,2]
[349885095,1737477061094,-1499.17,0.00020821,2]
[349885096,1737477061103,-783.66,0.00020821,2]
[349885097,1737477061114,-176.821769,0.00020821,2]
[349885098,1737477061128,-500.0,0.00020821,2]
[349885099,1737477061138,-1128.29,0.00020821,2]
[349885100,1737477061148,-3766.79,0.00020821,2]
[349885101,1737477061158,-500.0,0.00020821,2]
[349885102,1737477061169,-1006.04,0.00020821,2]
[349885103,1737477061178,-2620.51,0.00020821,2]
[349885104,1737477061188,-500.0,0.00020821,2]
[349885105,1737477061197,-1151.57,0.00020821,2]
[349885106,1737477061210,-881.18,0.00020821,2]
[349885107,1737477061220,-500.0,0.00020821,2]
[349885108,1737477061230,-1114.11,0.00020821,2]
[349885109,1737477061239,-766.29,0.00020821,2]
[349885110,1737477061249,-1441.88,0.00020821,2]
[349885111,1737477061258,-748.12,0.00020821,2]
[349885112,1737477061268,-500.0,0.00020821,2]
[349885113,1737477061277,-2257.9,0.00020821,2]
[349885114,1737477061286,-633.02,0.00020821,2]
[349885115,1737477061296,-500.0,0.00020821,2]
[349885116,1737477061307,-2032.02,0.00020821,2]
[349885117,1737477061316,-2364.46,0.00020821,2]
[349885118,1737477061326,-876.37,0.00020821,2]
[349885119,1737477061335,-1545.37,0.00020821,2]
[349885120,1737477061345,-500.0,0.00020821,2]
[349885121,1737477061354,-3191.77,0.00020821,2]
[349885122,1737477061364,-605.27,0.00020821,2]
[349885123,1737477061374,-1179.69,0.00020821,2]
[349885124,1737477061383,-638.22,0.00020821,2]
[349885125,1737477061393,-500.0,0.00020821,2]
[349885126,1737477061403,-752.63,0.00020821,2]
[349885127,1737477061412,-1483.27,0.00020821,2]
[349885128,1737477061422,-1265.35,0.00020821,2]
[349885129,1737477061432,-3137.3,0.00020821,2]
[349885130,1737477061442,-747.65,0.00020821,2]
[349885131,1737477061452,-1937.57,0.00020821,2]
[349885132,1737477061465,-1040.18,0.00020821,2]
[349885133,1737477061476,-1723.07,0.00020821,2]
[349885134,1737477061486,-649.71,0.00020821,2]
[349885135,1737477061496,-1180.36,0.00020821,2]
[349885136,1737477061506,-603.6,0.00020821,2]
[349885137,1737477061517,-1029.27,0.00020821,2]
[349885138,1737477061527,-500.0,0.00020821,2]
[349885139,1737477061536,-1082.54,0.00020821,2]
[349885140,1737477061546,-5615.7,0.00020821,2]
[349885141,1737477061555,-4584.63,0.00020821,2]
[349885142,1737477061565,-1492.74,0.00020821,2]
[349885143,1737477061575,-500.0,0.00020821,2]
[349885144,1737477061585,-1203.88,0.00020821,2]
[349885145,1737477061595,-1420.19,0.00020821,2]
[349885146,1737477061605,-1366.47,0.00020821,2]
[349885147,1737477061614,-1049.81,0.00020821,2]
[349885148,1737477061625,-2134.74,0.00020821,2]
[349885149,1737477061635,-1655.17,0.00020821,2]
[349885150,1737477061645,-500.0,0.00020821,2]
[349885151,1737477061655,-755.87,0.00020821,2]
[349885152,1737477061665,-1263.01,0.00020821,2]
[349885153,1737477061675,-500.0,0.00020821,2]
[349885154,1737477061684,-1043.95,0.00020821,2]
[349885155,1737477061695,-500.0,0.00020821,2]
[349885156,1737477061705,-2455.69,0.00020821,2]
[349885157,1737477061717,-512.55,0.00020821,2]
[349885158,1737477061727,-792.37,0.00020821,2]
[349885159,1737477061737,-1668.11,0.00020821,2]
[349885160,1737477061746,-182.05,0.00020821,2]
[349885161,1737477061756,-500.0,0.00020821,2]
[349885162,1737477061767,-850.0,0.00020821,2]
[349885163,1737477061776,-500.0,0.00020821,2]
[349885164,1737477061787,-848.82,0.00020821,2]
[349885165,1737477061798,-1140.79,0.00020821,2]
[349885166,1737477061808,-2272.73,0.00020821,2]
[349885167,1737477061817,-5135.31,0.00020821,2]
[349885168,1737477061827,-2017.12,0.00020821,2]
[349885169,1737477061837,-500.0,0.00020821,2]
[349885170,1737477061847,-269.55,0.00020821,2]
[349885171,1737477061856,-500.0,0.00020821,2]
[349885172,1737477061866,-500.0,0.00020821,2]
[349885173,1737477061876,-612.05,0.00020821,2]
[349885174,1737477061886,-1227.83,0.00020821,2]
[349885175,1737477061896,-1668.51,0.00020821,2]
[349885176,1737477061906,-500.0,0.00020821,2]
[349885177,1737477061916,-584.62,0.00020821,2]
[349885178,1737477061926,-1728.52,0.00020821,2]
[349885179,1737477061936,-500.0,0.00020821,2]
[349885180,1737477061945,-1313.62,0.00020821,2]
[349885181,1737477061955,-1003.95,0.00020821,2]
[349885182,1737477061971,-500.0,0.00020821,2]
[349885183,1737477061981,-1322.78,0.00020821,2]
[349885184,1737477061991,-874.3,0.00020821,2]
[349885185,1737477062000,-671.72,0.00020821,2]
[349885186,1737477062010,-5811.8,0.00020821,2]
[349885187,1737477062019,-500.0,0.00020821,2]
[349885188,1737477062029,-500.0,0.00020821,2]
[349885189,1737477062038,-2583.31,0.00020821,2]
[349885190,1737477062048,-1676.01,0.00020821,2]
[349885191,1737477062058,-500.0,0.00020821,2]
[349885192,1737477062069,-668.64,0.00020821,2]
[349885193,1737477062078,-500.0,0.00020821,2]
[349885194,1737477062088,-500.0,0.00020821,2]
[349885195,1737477062098,-563.38,0.00020821,2]
[349885196,1737477062107,-2301.07,0.00020821,2]
[349885197,1737477062117,-500.0,0.00020821,2]
[349885198,1737477062128,-892.19,0.00020821,2]
[349885199,1737477062138,-894.49,0.00020821,2]
[349885200,1737477062149,-500.0,0.00020821,2]
[349885201,1737477062159,-150.0,0.00020822,2]
[349885202,1737477062170,-366.11346198,0.00020824,2]
[349885203,1737477062180,-2979.42398513,0.00020826,2]
[349885204,1737477062189,-1076.81159838,0.00020831,2]
[349885205,1737477062200,-366.11346198,0.00020834,2]
[349885206,1737477062211,-1076.81159838,0.00020834,2]
[349885207,1737477062221,-150.0,0.0002084,2]
[349885208,1737477062231,-16621.02188411,0.0002084,2]
[349885209,1737477062241,-16621.02188411,0.00020841,2]
[349885210,1737477062251,-297.62597625,0.00020843,2]
[349885211,1737477062261,-200.0,0.00020843,2]
[349885212,1737477062271,-297.79711042,0.00020854,2]
[349885213,1737477062281,-2979.42398513,0.00020855,2]
[349885214,1737477062292,-150.0,0.00020856,2]
[349885215,1737477062301,-366.11346198,0.00020858,2]
[349885216,1737477062312,-297.79711042,0.00020863,2]
[349885217,1737477062322,-297.79711042,0.00020863,2]
[349885218,1737477062331,-200.0,0.00020865,2]
[349885219,1737477062341,-1076.81159838,0.00020866,2]
[349885220,1737477062352,-5000.0,0.00020868,2]
[349885221,1737477062364,-2736.53590528,0.0002087,2]
[349885222,1737477062375,-150.0,0.00020871,2]
[349885223,1737477062384,-263.12097391,0.00020872,2]
[349885224,1737477062394,-2736.53590528,0.00020882,2]
[349885225,1737477062404,-345.9399633,0.00020885,2]
[349885226,1737477062413,-366.11346198,0.00020885,2]
[349885227,1737477062423,-1051.05,0.00020889,7]
[349885228,1737477062433,-1051.05,0.00020889,7]
[349885229,1737477062444,-297.79711042,0.00020891,2]
[349885230,1737477062454,-25000.0,0.00020896,2]
[349885231,1737477062467,-150.0,0.00020897,2]
[349885232,1737477062478,-2979.42398513,0.000209,2]
[349885233,1737477062489,-424.68362226,0.000209,2]
[349885234,1737477062498,-194.32161878,0.000209,2]
[349885235,1737477062507,-263.12097391,0.00020901,2]
[349885236,1737477062517,-16621.02188411,0.00020902,2]
[349885237,1737477062526,-150.0,0.00020904,2]
[349885238,1737477062537,-366.11346198,0.00020904,2]
[349885239,1737477062547,-297.62597625,0.00020905,2]
[349885240,1737477062557,-297.62597625,0.00020906,2]
[349885241,1737477062566,-263.12097391,0.00020907,2]
[349885242,1737477062575,-2736.53590528,0.0002091,2]
[349885243,1737477062587,-200.0,0.00020911,2]
[349885244,1737477062596,-200.0,0.00020914,2]
[349885245,1737477062606,-150.0,0.0002092,2]
[349885246,1737477062616,-16621.02188411,0.00020923,2]
[349885247,1737477062626,-150.0,0.00020925,2]
[349885248,1737477062636,-2979.42398513,0.00020925,2]
[349885249,1737477062646,-345.9399633,0.00020926,2]
[349885250,1737477062656,-150.0,0.00020926,2]
[349885251,1737477062667,-5000.0,0.00020933,2]
[349885252,1737477062677,-1076.81159838,0.00020934,2]
[349885253,1737477062687,-2979.42398513,0.00020941,2]
[349885254,1737477062696,-297.79711042,0.00020944,2]
[349885255,1737477062706,-345.9399633,0.00020944,2]
[349885256,1737477062718,-150.0,0.00020948,2]
[349885257,1737477062727,-200.0,0.00020948,2]
[349885258,1737477062737,-150.0,0.00020949,2]
[349885259,1737477062747,-150.0,0.00020949,2]
[349885260,1737477062758,-1272.58,0.00020956,2]
[349885261,1737477062767,-150.0,0.00020957,2]
[349885262,1737477062777,-173.0,0.00020959,13]